Cogmind - Beta 16.1 @@@ ROGUE MODE // 2026.02.10 @ 19:21:05 Player: AlmondRoll Result: Destroyed by 4K-F02(R) with Subdweller Shrapnel Launcher Performance ------------- Evolutions (0) 0 Regions Visited (2) 400 Robots Destroyed (35) 175 Value Destroyed (972) 972 Prototype IDs (13) 260 Alien Tech Used (0) 0 Bonus (0) 0 TOTAL SCORE: 1807 Bonus ------- None Cogmind --------- Core Integrity 0/250 Matter 290/300 Energy 55/100 System Corruption 0% Temperature Cool (16) Movement Core (950) Ox18 Location -10/Subcaves Parts ------- > --- POWER (1) -------- (None) > --- PROPULSION (2) --- Subdweller Monowheel > --- UTILITY (2) ------ Disposable Heat Sink High-capacity Storage Unit > --- WEAPON (2) ------- Subdweller Beam Cannon Subdweller Beam Cannon > --- INVENTORY (20) --- Flight Unit Flight Unit Flight Unit Flight Unit Medium Storage Unit Improved Terrain Scanner Scrap Shield Powered Cannon Mini Grenade Launcher Mini Grenade Launcher 1B-0RG's Assimilator Datajack Makeshift Hammer Peak State ------------ > --- POWER ------------ Ion Engine > --- PROPULSION ------- Spiked Treads Compact Wheel > --- UTILITY ---------- High-capacity Storage Unit Improved Terrain Scanner > --- WEAPON ----------- Subdweller Beam Cannon Subdweller Beam Cannon > --- INVENTORY -------- Flight Unit Flight Unit Flight Unit Flight Unit Disposable Heat Sink Medium Storage Unit Scrap Shield Subdweller Beam Cannon Powered Cannon Mini Grenade Launcher Mini Grenade Launcher 1B-0RG's Assimilator Datajack Makeshift Hammer [Rating: 22] Favorites ----------- Power Ion Engine Engine Ion Engine Propulsion Light Treads Treads Light Treads Leg Aluminum Leg Wheel Compact Wheel Utility High-capacity Storage Unit Device Structural Scanner Storage High-capacity Storage Unit Weapon Subdweller Beam Cannon Energy Gun Medium Laser Energy Cannon Subdweller Beam Cannon Ballistic Gun Light Assault Rifle Launcher Mini Grenade Launcher Impact Weapon Hammer Build | -11 -10 -10 ------- Run | Yrd Mat Sub Slots Evolved . | . . . Power . | . . . Propulsion . | . . . Utility . | . . . Weapon . | . . . Parts Attached 24 | 3 6 15 Power . | . . . Engine . | . . . Core . | . . . Reactor . | . . . Propulsion 6 | 2 . 4 Treads 4 | 2 . 2 Leg . | . . . Wheel 2 | . . 2 Hover . | . . . Flight . | . . . Utility 8 | 1 4 3 Device 5 | 1 1 3 Storage 3 | . 3 . Processor . | . . . Hackware . | . . . Protection . | . . . Artifact . | . . . Weapon 10 | . 2 8 Energy Gun . | . . . Energy Cannon 7 | . 2 5 Ballistic Gun . | . . . Ballistic Cannon . | . . . Launcher 1 | . . 1 Special Weapon . | . . . Impact Weapon 2 | . . 2 Slashing Weapon . | . . . Piercing Weapon . | . . . Special Melee Weapon . | . . . Unidentified Prototypes . | . . . Parts Lost 8 | . . 8 Power 1 | . . 1 Propulsion 4 | . . 4 Utility 2 | . . 2 Weapon 1 | . . 1 Highest Loss Streak 4 | . . 4 To Critical Strikes . | . . . Average Backups 17 | 6 13 18 Power . | 1 . . Propulsion 5 | 4 4 5 Utility 3 | . 2 3 Weapon 7 | 1 5 8 Tool/Special . | . . . Unused Backups 25 | . 6 19 Power . | . . . Propulsion 4 | . . 4 Utility 4 | . 1 3 Weapon 15 | . 5 10 Tool/Special 2 | . . 2 Average Slot Usage (%) 99 | . 100 99 Engine 14 | . 14 14 Treads 24 | . 28 23 Wheel 3 | . . 4 Device 13 | . 14 13 Storage 14 | . 14 14 Energy Cannon 20 | . 21 20 Impact Weapon 5 | . . 7 Peak Build Rating 22 | 9 11 22 Average Rating 12 | 7 10 13 On Entrance 8 | 6 9 11 Avg Prop Armor Cover (%) 15 | . . 15 Naked Turns . | . . . Heaviest Build 62 | 14 52 62 Greatest Support 40 | 40 40 40 Greatest Overweight (x) 3 | . 1 3 Average Overweight (x) 1 | . . 1 Largest Inventory Capacity 20 | 8 20 20 Average Capacity 19 | 8 18 20 Most Carried 20 | 6 20 20 Average Carried 18 | 5 13 19 Final Capacity 20 | 8 20 20 Final Carried 20 | 4 20 19 Class Distribution -------------------- 100% | Mutant Dominant Class ---------------- Mutant | -10/Materials Mutant | -10/Subcaves Resources | -11 -10 -10 ----------- Run | Yrd Mat Sub Matter Collected 867 | 235 67 565 Remotely . | . . . Salvage Created 1437 | 117 429 891 Parts 79 | 4 24 51 Haulers Intercepted . | . . . Recyclers Shooed 5 | 1 4 . Parts Field Recycled . | . . . Retrieved Matter . | . . . Parts Self-Destructed 10 | . . 10 Prevented . | . . . Parts Restored . | . . . Kills | -11 -10 -10 ------- Run | Yrd Mat Sub Combat Hostiles Destroyed 26 | . 7 19 Guns 2 | . 2 . Cannons 22 | . 5 17 Classes Destroyed 10 | 2 4 4 Worker 3 | . 3 . Tunneler 2 | 1 1 . Recycler 3 | 1 2 . Operator 1 | . 1 . Swarmer 4 | . 3 1 Grunt 5 | . 4 1 Sentry 1 | . . 1 Artisan 1 | . . 1 Cobbler 1 | . . 1 Subdweller 16 | . . 16 Best Kill Streak 4 | 2 4 2 Combat Bots Only 3 | . 3 2 Max Kills in Single Turn 2 | 1 2 1 Gunslinging . | . . . Exploded . | . . . Melee . | . . . Uniques/NPCs Destroyed . | . . . Combat | -11 -10 -10 -------- Run | Yrd Mat Sub Hostile Shots Fired 85 | . 26 59 Missed 28 | . 9 19 Hits 57 | . 17 40 Projectile 57 | . 17 40 AOE 5 | . . 5 Critical Strikes 2 | . 2 . Damage Taken 1252 | . 185 1067 Core 253 | . 56 197 Absorbed by Shields . | . . . Core Remaining (%) 100 | 100 . . Volleys Fired 80 | 5 31 44 Largest 2 | 2 2 2 Hottest 160 | 70 120 160 Shots Fired 152 | 10 62 80 Gun 30 | 10 20 . Cannon 122 | . 42 80 Launcher . | . . . Special . | . . . Kinetic 15 | 5 10 . Thermal 137 | 5 52 80 Explosive . | . . . Electromagnetic . | . . . Robot Hit Streak 10 | 3 6 10 Robot Miss Streak 3 | 2 3 3 Penetration Max . | . . . Secondary Targets . | . . . Shots Hit Robots 94 | 7 38 49 Core Hits 41 | 3 19 19 Critical Kills 2 | . . 2 Critical Parts Destroyed . | . . . Critical Strikes 4 | . 2 2 Burn 2 | . 2 . Meltdown 2 | . . 2 Melee Attacks 60 | . . 60 Impact 60 | . . 60 Slashing . | . . . Piercing . | . . . Sneak Attacks 2 | . . 2 Combat Hostiles . | . . . Follow-up Attacks . | . . . Damage Inflicted 2049 | 65 651 1333 Guns 219 | 65 154 . Cannons 1717 | . 458 1259 Explosions . | . . . Melee 74 | . . 74 Ramming 39 | . 39 . Kinetic 81 | 28 53 . Thermal 1855 | 37 559 1259 Explosive . | . . . Electromagnetic . | . . . Impact 74 | . . 74 Slashing . | . . . Piercing . | . . . Highest Corruption . | . . . Average Corruption . | . . . Corruption Purged . | . . . Corruption Blocked . | . . . Overload Shots . | . . . Overflow Damage 26 | . 18 8 Projectiles 26 | . 18 8 Explosions . | . . . Melee . | . . . Knockbacks . | . . . Impact . | . . . Kinetic . | . . . Secondary . | . . . Self-Inflicted Damage . | . . . Shots . | . . . Rammed 9 | . 9 . Targets Rammed 10 | . 10 . Kicked . | . . . Crushed 1 | . 1 . Highest Temperature 267 | 70 267 192 Average Temperature 63 | 36 70 56 Received Heat Transfer 261 | . 72 189 Siege Activations . | . . . Martial Activations . | . . . Shielding Activations . | . . . Robots Disrupted . | . . . Combat Hostiles . | . . . Robots Corrupted . | . . . Combat Hostiles . | . . . Parts Fried . | . . . Impact Corruptions . | . . . Robots Melted 2 | . . 2 Combat Hostiles 2 | . . 2 Parts Melted 11 | . 1 10 Heat Transferred 3293 | 111 1406 1776 Parts Sabotaged . | . . . Parts Stolen . | . . . Parts Stripped . | . . . Power Chain Reactions . | . . . Alert | -11 -10 -10 ------- Run | Yrd Mat Sub Maximum Alert Level . | . . . Low Security (%) 100 | 100 100 . Level 1 . | . . . Level 2 . | . . . Level 3 . | . . . Level 4 . | . . . Level 5 . | . . . High Security . | . . . Max Security . | . . . Peak Influence 84 | 10 84 . Initial . | . . . Average 15 | 1 15 . Influence Increases 331 | 10 251 70 Destroy 0b10 Robot/C 200 | . 140 60 Destroy 0b10 Robot/NC 45 | 10 35 . Destroy Leader 40 | . 30 10 Successful Hack 15 | . 15 . Destroy Structure 1 | . 1 . Partial Spotted 15 | . 15 . Lose Combat Pursuer 15 | . 15 . Influence Decreases 331 | 10 213 108 Entered New Map 19 | . . 19 Time Decay 312 | 10 213 89 Squads Dispatched . | . . . Investigation . | . . . Extermination . | . . . Reinforcement . | . . . Assault . | . . . Garrison . | . . . Intercept . | . . . Searches Triggered . | . . . Construction Impeded . | . . . Haulers Reinforced . | . . . Active Scanning Responses . | . . . Cargo Convoy Interrupts . | . . . Stealth | -11 -10 -10 --------- Run | Yrd Mat Sub Distress Signals 1 | . 1 . Communications Jammed . | . . . Distress Signals . | . . . Times Spotted 34 | . 14 20 Peak Tracking Total 4 | . 4 2 Tactical Retreats 1 | . 1 . Traps | -11 -10 -10 ------- Run | Yrd Mat Sub Traps Triggered 2 | . . 2 Indirectly . | . . . Trap Hack Attempts . | . . . Triggered . | . . . Disarmed . | . . . Reprogrammed . | . . . Reused . | . . . Traps Extracted . | . . . Installed . | . . . Triggered . | . . . Machines | -11 -10 -10 ---------- Run | Yrd Mat Sub Machines Disabled 1 | . . 1 Max in Single Turn 1 | . . 1 Machines Repaired . | . . . Machines Dismantled . | . . . Machines Sabotaged . | . . . Overloaded Fab Kills . | . . . Hacking | -11 -10 -10 --------- Run | Yrd Mat Sub Machines Accessed 11 | . 7 4 Terminals 7 | . 7 . Fabricators . | . . . Repair Stations . | . . . Recycling Units . | . . . Scanalyzers . | . . . Garrison Access . | . . . Total Hacks 28 | . 20 8 Successful 15 | . 7 8 Failed 12 | . 12 . Catastrophic 3 | . 3 . Database Lockouts 1 | . 1 . Manual 12 | . 12 . Terminals 20 | . 20 . Fabricators . | . . . Repair Stations . | . . . Recycling Units . | . . . Scanalyzers . | . . . Garrison Access . | . . . Terminal Hacks 15 | . 7 8 Record 5 | . . 5 Robot Analysis 2 | . 2 . Open Door 1 | . . 1 Alert Level 1 | . 1 . Locate Traps 2 | . 2 . Dispatch Records 1 | . 1 . Hauler Manifests 1 | . 1 . Proto ID Catalog 1 | . . 1 Release Object 1 | . . 1 Fabricator Hacks . | . . . Repair Station Hacks . | . . . Recycling Unit Hacks . | . . . Scanalyzer . | . . . Garrison Access Hacks . | . . . Unauthorized Hacks . | . . . Terminals . | . . . Fabricators . | . . . Repair Stations . | . . . Recycling Units . | . . . Scanalyzers . | . . . Garrison Access . | . . . Data Cores Recovered 1 | . 1 . Used . | . . . Hacking Detections 6 | . 6 . Full Trace Events . | . . . Feedback Events . | . . . Feedback Blocked . | . . . Robot Schematics Acquired . | . . . Robots Built . | . . . Authchips . | . . . Time . | . . . Total Robot Build Rating . | . . . Part Schematics Acquired . | . . . Parts Built . | . . . Authchips . | . . . Time . | . . . Total Part Build Rating . | . . . Part Studies Acquired . | . . . Parts Repaired . | . . . Time . | . . . Parts Recycled . | . . . Recycled Matter . | . . . Retrieved Matter . | . . . Retrieved Components . | . . . Parts Scanalyzed . | . . . Part Schematics Acquired . | . . . Parts Damaged . | . . . Bothacking | -11 -10 -10 ------------ Run | Yrd Mat Sub Used RIF Installer . | . . . Robots Hacked . | . . . Non-combat . | . . . Combat . | . . . Robot Hacks Applied . | . . . Relay Couplers Released . | . . . Fabnet Peak Effective % . | . . . Robots Rewired . | . . . Allies Hacked . | . . . Hacks Repelled . | . . . Allies | -11 -10 -10 -------- Run | Yrd Mat Sub Total Allies . | . . . Largest Group . | . . . Highest-Rated Group . | . . . Highest-Rated Ally . | . . . Total Orders . | . . . Ally Attacks . | . . . Total Damage . | . . . Kills . | . . . Allies Corrupted . | . . . Allies Melted . | . . . Intel | -11 -10 -10 ------- Run | Yrd Mat Sub Active Infowar (turns) 4003 | 17 1035 2951 Terrain 1833 | 17 1035 781 Structural 2170 | . . 2170 Robot Analysis Total 2 | . 2 . Derelict Logs Recovered 2 | . . 2 Drone Launches . | . . . Drone Recoveries . | . . . Exploration | -11 -10 -10 ------------- Run | Yrd Mat Sub Turns Passed 5015 | 39 1299 3677 Spaces Moved 2024 | 13 501 1510 Core . | . . . Treads 1434 | 13 501 920 Legs . | . . . Wheels 590 | . . 590 Hover . | . . . Flight . | . . . Fastest Speed 140 | 160 160 140 Average Speed 210 | 160 220 207 Slowest Speed 460 | 160 240 460 Overloaded Moves . | . . . Propulsion Burnouts . | . . . Robots Hopped . | . . . Potential Cave-ins . | . . . Cave-ins Triggered . | . . . Exploration Rate (%) 58 | 3 90 83 Regions Visited 2 Branch Regions 1 Pre-discovered Areas 3 | . . 3 Known Exits Taken . | . . . Unknown Exits Taken 2 | 1 1 . Scrap Searched 21 | . . 21 Spaces Dug 15 | . . 15 Terrain Destroyed 23 | . . 23 Melee 15 | . . 15 Projectile 8 | . . 8 AOE . | . . . Terrain Rammed . | . . . Walls Destroyed . | . . . Machines Disabled . | . . . Actions | -11 -10 -10 --------- Run | Yrd Mat Sub Total 2512 | 22 626 1864 Wait 209 | . 52 157 Move 2022 | 12 500 1510 Hop . | . . . Pick Up 35 | . 20 15 Fast Attach 2 | 1 . 1 Attach 6 | . . 6 Detach . | . . . Swap 60 | 2 6 52 Drop 28 | 2 7 19 Fire 80 | 5 31 44 Melee 60 | . . 60 Ram . | . . . Kick . | . . . Crush 10 | . 10 . Escape Stasis . | . . . Rewire . | . . . Trap . | . . . Miscellaneous . | . . . Route ------- -11/Scrapyard -10/Materials (discovered 5 exits: [*Mat x3] / [*Min] / *Sub) -10/Subcaves (discovered 3 exits: *Mat x2 / Rec) History --------- Turn | Location | Event 19 | -11/Scrapyard | Discovered new exit (range 3) 40 | -11/Scrapyard | Entered Materials 139 | -10/Materials | Central database locked down 232 | -10/Materials | Discovered new exit (range 6) 317 | -10/Materials | Build established: Mutant 620 | -10/Materials | Discovered new exit (range 10) 730 | -10/Materials | Discovered new exit (range 12) 1220 | -10/Materials | Discovered new exit (range 14) 1319 | -10/Materials | Discovered new exit (range 5) 1339 | -10/Materials | Entered Subcaves 1347 | -10/Subcaves | Learned location of Zion (-7) 1347 | -10/Subcaves | Met a Zionite searching for "candidates" 1444 | -10/Subcaves | A swath of the cavern ceiling suddenly collapsed 2005 | -10/Subcaves | Shifting Twisted Machinery released Sub. Beam Cannon 2013 | -10/Subcaves | Shifting Twisted Machinery released Piercing Trap 2119 | -10/Subcaves | Disturbed a concealed Subdweller 3344 | -10/Subcaves | Shifting Twisted Machinery released Sub. Machine Gun 3362 | -10/Subcaves | Shifting Twisted Machinery released Sub. Machine Gun 3433 | -10/Subcaves | Ambushed by Subdweller buried in earth 3927 | -10/Subcaves | Shifting Twisted Machinery released Sub. Beam Cannon 3929 | -10/Subcaves | Shifting Twisted Machinery released Mak. Spear 3989 | -10/Subcaves | Visited Clippyterm 3993 | -10/Subcaves | Identified exit to Materials 3993 | -10/Subcaves | Identified exit to Recycling 3993 | -10/Subcaves | Learned location of Deep Caves (-7) 4366 | -10/Subcaves | Core integrity fell below 50% 4509 | -10/Subcaves | A swath of the cavern ceiling suddenly collapsed 4646 | -10/Subcaves | Visited 4L-MR0's lab 4664 | -10/Subcaves | Found Prototype Special Melee Weapon 4670 | -10/Subcaves | Found Powered Cannon 4920 | -10/Subcaves | Disturbed a concealed Subdweller 5000 | -10/Subcaves | Core integrity fell below 20% 5016 | -10/Subcaves | Destroyed by 4K-F02(R) with Subdweller Shrapnel Launcher Last Messages --------------- 04896_ Searching scrap... 04896_ Found Sub. Machine Gun. 04901_ Searching scrap... 04901_ Found Sub. Beam Cannon. 04901_ Found Battle Cannon. 04901_ Found 33 Matter. 04920_ C2-EUC(R) angrily emerges from the Twisted Machinery. 04926_ C2-EUC(R) suffers critical hit (Meltdown). 04926_ Disposable Heat Sink melted. 04926_ Scrap Shield melted. 04926_ Sub. Power Source melted. 04926_ Sub. Monowheel melted. 04989_ Com. Wheel destroyed. 04996_ 5S-3IS(R) destroyed. 04999_ 7T-LMC(R) destroyed. 05007_ Acquired Sub. Monowheel. 05008_ Acquired 10 matter. 05013_ Sub. Beam Cannon destroyed. 05013_ Ion Engine destroyed. 05013_ Spk. Treads destroyed. Map ----- +----------------------------------------------------+ | ????????## ??## ### "# ######?# """"" # | | ?????????## #?## " #" "## ##### " """ | | ?????????## ## ##"""""#" " "#* #### ### "" | | ?????????# ####"""#"##" ""#??####?#" " | | ?????????# #####"""#"###""#??#???#""" " | | ?????????## ##### ##??#"#######""##??????# " | | ??????????###?#?## ########""#?#####??????# # | | ????????????????# ]=##&" " ###????#???????# # | | ????????????????# [%]%#####"###??#???????" ? | | ??????????????#?## %[ ]##"###""#?????????""" ? | | ??????????????#??#######%"%"##""##???????? "" ? | | ?????????????????#???# #/&["#""""##??????#???? ? | | ?????????????????????# #"%"[#"####????????????##?? | | ?????????????????????# ##""##"#??????????????????? | | ??????????????#??????# #####"##???????????????#?? | | ??????????????????????# "#???????#??????????? | | ??????????????????????### ###??????????????????? | | ???????????????????????## ##????????????????????? | | ??????????????????????## ;#????#???????????????? | | ????????????????????### #????????????????????? | | ????????????????????# ; ###??????????????????? | | ????????????????????# # #??????????????????? | | ????????????????????# #??????????????????? | | ???????????????????## ! #??????????????????? | | ???????????????????# & #??????????????????? | | ???????????????????# @ #??????????????????? | | ???????????????????### #??????????????????? | | ????????????????????# ! #??????????????????? | | ???????????????????# ##??????????????????? | | ??????????????????# ;; ; #???????????????????? | | ?????????????????# ### R####???????????????????? | | ????????????????# ??# #??????????????????????? | | ????????????????# ??? ??????????????????????? | | ??????????????? ???? ??????????????????????? | | ?????????????? ???? ??????????????????????? | | ??????????????# ????? ??????????????????????? | | ??????????????##????? ??????????????????????? | | ????????????????????? ??????????????????????? | | ????????????????????# ??????????????????????? | | ????????????????????# #?????????????